fUSD/lending_fUSD_20260130
["ID","MTS","AMOUNT","RATE_DAILY","PERIOD"]
[404022717,1769738289922,50.88789348,0.000252,48]
[404022720,1769738805248,10000.0,0.00021,30]
[404022721,1769738816475,10000.0,0.00021,30]
[404022722,1769738948115,519.89247446,0.00015,3]
[404022723,1769739005311,196.0,0.00020412,120]
[404022737,1769739032338,-165.96,0.000138,2]
[404022738,1769739032349,-264.0,0.000138,2]
[404022739,1769739032359,-250.0,0.00013808,2]
[404022740,1769739032369,-227.0,0.00013817,2]
[404022741,1769739032379,-300.0,0.00013817,2]
[404022742,1769739032388,-150.0,0.00013817,2]
[404022743,1769739032399,-300.0,0.00013817,2]
[404022744,1769739032409,-195.0,0.00013817,2]
[404022745,1769739032418,-1200.0,0.00013817,2]
[404022746,1769739032428,-270.4952511,0.00013818,2]
[404022747,1769739032437,-500.0,0.00013818,2]
[404022748,1769739032447,-500.0,0.00013818,2]
[404022749,1769739032457,-400.42737409,0.00013818,2]
[404022750,1769739032468,-500.0,0.00013818,2]
[404022751,1769739032478,-500.0,0.00013818,2]
[404022752,1769739032487,-500.0,0.00013818,2]
[404022753,1769739032496,-500.0,0.00013818,2]
[404022754,1769739032505,-109.21817727,0.00013818,2]
[404022755,1769739032517,-390.78182273,0.00013818,2]
[404022756,1769739032527,-500.0,0.00013818,2]
[404022757,1769739032537,-500.0,0.00013818,2]
[404022758,1769739032549,-505.26310101,0.00013818,2]
[404022759,1769739032558,-500.0,0.00013818,2]
[404022760,1769739032568,-508.01928658,0.00013818,2]
[404022761,1769739032578,-666.4,0.00013818,2]
[404022762,1769739032588,-500.0,0.00013818,2]
[404022763,1769739032598,-500.0,0.00013818,2]
[404022764,1769739032607,-403.8414253,0.00013818,2]
[404022765,1769739032616,-666.4,0.00014092,2]
[404022766,1769739032625,-666.4,0.00014366,2]
[404022767,1769739032635,-666.4,0.0001464,2]
[404022768,1769739032644,-666.4,0.00014914,2]
[404022769,1769739032654,-1176.78999746,0.00014918,2]
[404022770,1769739032663,-255.0,0.00014936,2]
[404022771,1769739032672,-167.65,0.00015026,2]
[404022772,1769739032682,-200.0,0.00015042,2]
[404022773,1769739032691,-480.0,0.0001511,2]
[404022774,1769739032700,-578.20924308,0.00015111,2]
[404022775,1769739032710,-174.61919141,0.00015111,2]
[404022776,1769739032719,-322.6107,0.00015111,2]
[404022777,1769739032728,-209.40437684,0.00015111,2]
[404022778,1769739032737,-716.0,0.00015127,2]
[404022779,1769739032746,-420.0,0.0001514,2]
[404022780,1769739032755,-341.58087102,0.0001514,2]
[404022781,1769739032764,-409.0,0.00015153,2]
[404022782,1769739032773,-1029.0,0.00015157,2]
[404022783,1769739032782,-217.15233878,0.00015166,2]
[404022784,1769739032791,-458.0,0.00015172,2]
[404022785,1769739032800,-600.0,0.0001518,2]
[404022786,1769739032810,-300.0,0.0001518,2]
[404022787,1769739032819,-195.0,0.0001518,2]
[404022788,1769739032828,-250.0,0.0001518,2]
[404022789,1769739032837,-250.0,0.0001518,2]
[404022790,1769739032848,-2552.53748187,0.0001518,2]
[404022791,1769739032857,-666.4,0.00015188,2]
[404022792,1769739032866,-598.0,0.00015188,2]
[404022793,1769739032875,-1680.0,0.00015199,2]
[404022794,1769739032884,-225.18697532,0.00015221,2]
[404022795,1769739032894,-233.51889341,0.00015276,2]
[404022796,1769739032903,-166.66,0.00015299,2]
[404022797,1769739032912,-242.15909246,0.00015331,2]
[404022798,1769739032921,-251.11897888,0.00015386,2]
[404022799,1769739032930,-260.4103811,0.00015441,2]
[404022800,1769739032939,-232.70238356,0.00015462,2]
[404022801,1769739032950,-433.69761644,0.00015462,2]
[404022802,1769739032959,-508.0546101,0.00015469,2]
[404022803,1769739032969,-166.66,0.00015487,2]
[404022804,1769739032978,-270.0455652,0.00015496,2]
[404022805,1769739032987,-500.0,0.00015509,2]
[404022806,1769739032997,-280.03725112,0.00015551,2]
[404022807,1769739033006,-533.6,0.00015565,2]
[404022808,1769739033016,-290.39862941,0.00015606,2]
[404022809,1769739033025,-166.66,0.00015621,2]
[404022810,1769739033035,-181.08010149,0.00015659,2]
[404022811,1769739033044,-301.1433787,0.00015661,2]
[404022812,1769739033054,-36.73420779,0.00015736,2]
[404022813,1769739033087,-629.69236433,0.00015736,2]
[404022814,1769739033096,-232.6,0.00015817,7]
[404022815,1769739033106,-150.0,0.00015884,2]
[404022816,1769739033115,-912.14,0.00015918,2]
[404022817,1769739033124,-166.66,0.00015943,2]
[404022818,1769739033133,-166.66,0.00015999,2]
[404022819,1769739033143,-500.0,0.00016087,2]
[404022820,1769739033155,-500.0,0.00016087,2]
[404022821,1769739033164,-81.81634041,0.00016087,2]
[404022822,1769739033176,-290.62040021,0.00016087,2]
[404022823,1769739033186,-127.56325938,0.00016087,2]
[404022824,1769739033195,-392.93520707,0.00016087,2]
[404022825,1769739033206,-107.06479293,0.00016087,2]
[404022826,1769739033215,-500.0,0.00016087,2]
[404022827,1769739033224,-500.0,0.00016087,2]
[404022828,1769739033233,-500.0,0.00016087,2]
[404022829,1769739033242,-500.0,0.00016087,2]
[404022830,1769739033251,-500.0,0.00016087,2]
[404022831,1769739033260,-500.0,0.00016087,2]
[404022832,1769739033269,-186.24382311,0.00016087,2]
[404022833,1769739033358,-313.75617689,0.00016087,2]
[404022834,1769739033373,-250.0,0.00016087,2]
[404022835,1769739033392,-500.0,0.00016087,2]
[404022836,1769739033413,-250.0,0.00016087,2]
[404022837,1769739033430,-261.22937952,0.00016087,2]
[404022838,1769739033449,-250.0,0.00016087,2]
[404022839,1769739033467,-250.0,0.00016087,2]
[404022840,1769739033485,-500.0,0.00016087,2]
[404022841,1769739033501,-250.0,0.00016087,2]
[404022842,1769739033515,-500.0,0.00016087,2]
[404022843,1769739033532,-500.0,0.00016087,2]
[404022844,1769739033547,-250.0,0.00016087,2]
[404022845,1769739033561,-500.0,0.00016087,2]
[404022846,1769739033585,-250.0,0.00016087,2]
[404022847,1769739033600,-354.55089917,0.00016087,2]
[404022848,1769739033615,-243.18860057,0.00016087,2]
[404022849,1769739033634,-6.81139943,0.00016087,2]
[404022850,1769739033650,-275.06041542,0.00016087,2]
[404022851,1769739033664,-284.66766405,0.00016087,2]
[404022852,1769739033690,-436.4599913,0.00016087,2]
[404022853,1769739033706,-18.23712006,0.00016087,2]
[404022854,1769739033724,-231.76287994,0.00016087,2]
[404022855,1769739033741,-250.0,0.00016087,2]
[404022856,1769739033757,-250.0,0.00016087,2]
[404022857,1769739033772,-250.0,0.00016087,2]
[404022858,1769739033787,-250.0,0.00016087,2]
[404022859,1769739033802,-250.0,0.00016087,2]
[404022860,1769739033818,-250.0,0.00016087,2]
[404022861,1769739033833,-500.0,0.00016087,2]
[404022862,1769739033849,-219.18082836,0.00016087,2]
[404022907,1769739039820,-30.81917164,0.00016087,2]
[404022908,1769739039830,-250.0,0.00016087,2]
[404022909,1769739039839,-500.0,0.00016087,2]
[404022910,1769739039850,-500.0,0.00016087,2]
[404022911,1769739039860,-250.0,0.00016087,2]
[404022912,1769739039870,-854.2589148,0.00016087,2]
[404022913,1769739039879,-500.0,0.00016087,2]
[404022914,1769739039889,-250.0,0.00016087,2]
[404022915,1769739039898,-500.0,0.00016087,2]
[404022916,1769739039908,-500.0,0.00016087,2]
[404022918,1769739039917,-500.0,0.00016087,2]
[404022920,1769739039927,-500.0,0.00016087,2]
[404022922,1769739039936,-500.0,0.00016087,2]
[404022923,1769739039946,-500.0,0.00016087,2]
[404022924,1769739039956,-500.0,0.00016087,2]
[404022925,1769739039966,-500.0,0.00016087,2]
[404022926,1769739039975,-500.0,0.00016087,2]
[404022927,1769739039985,-500.0,0.00016087,2]
[404022928,1769739039994,-500.0,0.00016087,2]
[404022929,1769739040004,-500.0,0.00016087,2]
[404022930,1769739040013,-500.0,0.00016087,2]
[404022931,1769739040022,-500.0,0.00016087,2]
[404022932,1769739040031,-500.0,0.00016087,2]
[404022933,1769739040040,-500.0,0.00016087,2]
[404022934,1769739040050,-500.0,0.00016087,2]
[404022935,1769739040059,-250.0,0.00016087,2]
[404022936,1769739040069,-500.0,0.00016087,2]
[404022937,1769739040078,-250.0,0.00016087,2]
[404022938,1769739040087,-250.0,0.00016087,2]
[404022939,1769739040097,-1000.0,0.00016087,2]
[404022940,1769739040107,-250.0,0.00016087,2]
[404022941,1769739040116,-243.53300971,0.00016087,2]
[404022942,1769739040125,-250.0,0.00016087,2]
[404022943,1769739040135,-277.03101107,0.00016087,2]
[404022944,1769739040144,-151.5358321,0.00016087,2]
[404022945,1769739040153,-967.8372,0.00016097,2]
[404022946,1769739040166,-2798.9085,0.00016097,2]
[404022947,1769739040176,-1000.0,0.00016097,2]
[404022948,1769739040185,-433.0,0.00016152,2]
[404022949,1769739040194,-174.61919141,0.00016207,2]
[404022950,1769739040205,-166.66,0.00016265,2]
[404022951,1769739040214,-150.0,0.00016341,2]
[404022952,1769739040223,-150.231,0.00016341,2]
[404022953,1769739040232,-150.196,0.00016341,2]
[404022954,1769739040244,-151.0,0.00016341,2]
[404022955,1769739040253,-3479.0,0.00016341,2]
[404022956,1769739040262,-1409.0,0.00016341,2]
[404022957,1769739040273,-616.0,0.00016341,2]
[404022958,1769739040282,-1334.0,0.00016341,2]
[404022959,1769739040291,-1277.513,0.00016341,2]
[404022960,1769739040301,-920.396,0.00016341,2]
[404022961,1769739040311,-1210.141,0.00016341,2]
[404022962,1769739040321,-5933.0,0.00016341,2]
[404022963,1769739040332,-2444.0,0.00016341,2]
[404022964,1769739040341,-567.0,0.00016341,2]
[404022965,1769739040351,-533.6,0.00016343,2]
[404022966,1769739040361,-334.5472959,0.0001648,2]
[404022967,1769739040371,-166.66,0.0001651,2]
[404022968,1769739040380,-912.14,0.00016515,2]
[404022969,1769739040389,-166.66,0.00016587,2]
[404022971,1769739040398,-885.86649465,0.00016635,2]
[404022973,1769739040408,-167.65,0.00016695,2]
[404022975,1769739040417,-1852.42,0.00016711,2]
[404022977,1769739040426,-237.46273696,0.00016719,2]
[404022979,1769739040438,-1000.0,0.00016719,2]
[404022982,1769739040457,-413.14761604,0.00016719,2]
[404022986,1769739040626,-354.0347142,0.00016719,2]
[404022987,1769739040638,-346.3549328,0.00016719,2]
[404022988,1769739040647,-264.0,0.00016848,2]
[404022989,1769739040656,-166.66,0.00016909,2]
[404022990,1769739040666,-500.0,0.0001692,2]
[404022991,1769739040675,-491.72956432,0.0001692,2]
[404022992,1769739040695,-8.27043568,0.0001692,2]
[404022993,1769739040705,-500.0,0.0001692,2]
[404022994,1769739040715,-180.14376582,0.0001692,2]
[404022995,1769739040726,-304.31707601,0.0001692,2]
[404022996,1769739040735,-500.0,0.0001692,2]
[404022997,1769739040744,-500.0,0.0001692,2]
[404022998,1769739040754,-599.69966015,0.0001692,2]
[404022999,1769739040763,-263.30787798,0.0001692,2]
[404023000,1769739040774,-236.69212202,0.0001692,2]
[404023001,1769739040783,-36.96579798,0.0001692,2]
[404023002,1769739041328,-412.075,0.0001692,2]
[404023003,1769739041370,-50.95920202,0.0001692,2]
[404023004,1769739041379,-500.0,0.0001692,2]
[404023005,1769739041388,-500.0,0.0001692,2]
[404023006,1769739041397,-500.0,0.0001692,2]
[404023007,1769739041406,-500.0,0.0001692,2]
[404023008,1769739041415,-500.0,0.0001692,2]
[404023009,1769739041424,-500.0,0.0001692,2]
[404023010,1769739041433,-500.0,0.0001692,2]
[404023011,1769739041442,-500.0,0.0001692,2]
[404023012,1769739041450,-500.0,0.0001692,2]
[404023013,1769739041459,-360.44171985,0.0001692,2]
[404023014,1769739041469,-377.14259793,0.0001692,2]
[404023015,1769739041633,-122.85740207,0.0001692,2]
[404023016,1769739041642,-183.33805466,0.0001692,2]
[404023017,1769739041658,-316.66194534,0.0001692,2]
[404023018,1769739041668,-500.0,0.0001692,2]
[404023019,1769739041678,-173.035168,0.0001692,2]
[404023020,1769739041690,-326.964832,0.0001692,2]
[404023021,1769739041700,-500.0,0.0001692,2]
[404023022,1769739041710,-500.0,0.0001692,2]
[404023023,1769739041719,-500.0,0.0001692,2]
[404023024,1769739041727,-500.0,0.0001692,2]
[404023025,1769739041737,-500.0,0.0001692,2]
[404023026,1769739041746,-383.52202174,0.0001692,2]
[404023036,1769739044312,-965.0,0.0001674,2]
[404023037,1769739044322,-1144.50559695,0.00016774,2]
[404023038,1769739044331,-116.47797826,0.0001692,2]
[404023039,1769739044341,-500.0,0.0001692,2]
[404023040,1769739044350,-500.0,0.0001692,2]
[404023041,1769739044360,-500.0,0.0001692,2]
[404023042,1769739044370,-500.0,0.0001692,2]
[404023043,1769739044379,-500.0,0.0001692,2]
[404023044,1769739044388,-500.0,0.0001692,2]
[404023045,1769739044397,-500.0,0.0001692,2]
[404023046,1769739044407,-500.0,0.0001692,2]
[404023047,1769739044416,-500.0,0.0001692,2]
[404023048,1769739044425,-500.0,0.0001692,2]
[404023049,1769739044435,-500.0,0.0001692,2]
[404023050,1769739044444,-500.0,0.0001692,2]
[404023051,1769739044453,-500.0,0.0001692,2]
[404023052,1769739044463,-500.0,0.0001692,2]
[404023053,1769739044472,-500.0,0.0001692,2]
[404023055,1769739044481,-500.0,0.0001692,2]
[404023057,1769739044490,-500.0,0.0001692,2]
[404023059,1769739044499,-500.0,0.0001692,2]
[404023061,1769739044509,-500.0,0.0001692,2]
[404023063,1769739044518,-500.0,0.0001692,2]
[404023065,1769739044526,-500.0,0.0001692,2]
[404023066,1769739044536,-500.0,0.0001692,2]
[404023068,1769739044545,-500.0,0.0001692,2]
[404023070,1769739044554,-500.0,0.0001692,2]
[404023072,1769739044564,-500.0,0.0001692,2]
[404023075,1769739044575,-500.0,0.0001692,2]
[404023076,1769739044587,-500.0,0.0001692,2]
[404023078,1769739044597,-500.0,0.0001692,2]
[404023080,1769739044607,-500.0,0.0001692,2]
[404023083,1769739044617,-500.0,0.0001692,2]
[404023084,1769739044626,-500.0,0.0001692,2]
[404023086,1769739044636,-500.0,0.0001692,2]
[404023088,1769739044645,-500.0,0.0001692,2]
[404023090,1769739044654,-500.0,0.0001692,2]
[404023092,1769739044664,-500.0,0.0001692,2]
[404023094,1769739044674,-500.0,0.0001692,2]
[404023096,1769739044684,-500.0,0.0001692,2]
[404023098,1769739044694,-500.0,0.0001692,2]
[404023100,1769739044703,-500.0,0.0001692,2]
[404023102,1769739044713,-500.0,0.0001692,2]
[404023104,1769739044723,-500.0,0.0001692,2]
[404023106,1769739044732,-500.0,0.0001692,2]
[404023108,1769739044745,-681.72,0.00016922,2]
[404023110,1769739044755,-168.0,0.00016965,2]
[404023112,1769739044764,-311.0,0.00016999,2]
[404023114,1769739044773,-6307.42283614,0.00017,2]
[404023116,1769739044782,-250.0,0.00017,2]
[404023118,1769739044791,-166.66,0.00017021,2]
[404023120,1769739044801,-613.62,0.00017067,2]
[404023122,1769739044809,-613.62,0.00017067,2]
[404023123,1769739044818,-1265.41,0.00017067,2]
[404023124,1769739044828,-613.62,0.00017067,2]
[404023125,1769739044837,-613.62,0.00017067,2]
[404023126,1769739044847,-613.62,0.00017067,2]
[404023127,1769739044856,-613.62,0.00017067,2]
[404023128,1769739044869,-613.62,0.00017067,2]
[404023129,1769739044878,-613.62,0.00017067,2]
[404023130,1769739044888,-912.14,0.00017112,2]
[404023131,1769739044897,-533.6,0.00017122,2]
[404023132,1769739044906,-500.0,0.00017168,2]
[404023133,1769739044915,-918.64355495,0.00017183,2]
[404023134,1769739044925,-300.0,0.000172,6]
[404023135,1769739044939,-1000.0,0.00017209,2]
[404023136,1769739044949,-250.0,0.0001721,2]
[404023137,1769739044959,-600.0,0.000173,6]
[404023138,1769739044969,-1898.85844425,0.00017317,2]
[404023139,1769739044979,-2850.176,0.000174,2]
[404023140,1769739044988,-236.976,0.000174,2]
[404023141,1769739044998,-1500.0,0.000174,2]
[404023142,1769739045008,-1000.0,0.000174,6]
[404023143,1769739045019,-168.0,0.00017408,2]
[404023144,1769739045029,-159.0424929,0.00017423,2]
[404023145,1769739045039,-736.0,0.00017451,2]
[404023146,1769739045048,-1000.0,0.00017483,2]
[404023147,1769739045058,-1300.0,0.000175,6]
[404023148,1769739045067,-166.66,0.00017532,2]
[404023149,1769739045077,-168.0,0.00017548,2]
[404023150,1769739045086,-2314.0,0.000176,2]
[404023151,1769739045095,-1600.0,0.000176,6]
[404023152,1769739045104,-168.0,0.00017655,2]
[404023153,1769739045116,-150.0,0.00017699,2]
[404023154,1769739045125,-500.0,0.00017699,2]
[404023155,1769739045135,-150.0,0.00017699,2]
[404023156,1769739045145,-150.0,0.00017699,2]
[404023157,1769739045155,-150.67479101,0.00017699,2]
[404023158,1769739045167,-500.0,0.00017699,2]
[404023159,1769739045176,-500.0,0.00017699,2]
[404023160,1769739045185,-500.0,0.00017699,2]
[404023161,1769739045195,-150.0,0.00017699,2]
[404023162,1769739045205,-150.0,0.00017699,2]
[404023163,1769739045215,-150.0,0.00017699,2]
[404023166,1769739045224,-500.0,0.00017699,2]
[404023168,1769739045236,-500.0,0.00017699,2]
[404023170,1769739045246,-500.0,0.00017699,2]
[404023172,1769739045256,-150.0,0.00017699,2]
[404023174,1769739045265,-500.0,0.00017699,2]
[404023176,1769739045275,-150.0,0.00017699,2]
[404023177,1769739045285,-204.59716346,0.00017699,2]
[404023178,1769739045295,-300.0,0.000177,6]
[404023179,1769739045309,-912.14,0.00017709,2]
[404023180,1769739045319,-391.89270937,0.00017718,2]
[404023181,1769739045329,-1034.21106037,0.00017718,2]
[404023182,1769739045339,-1824.47089944,0.00017718,2]
[404023183,1769739045348,-2729.29935113,0.00017718,2]
[404023184,1769739045359,-3692.8386,0.00017718,2]
[404023185,1769739045368,-952.63336648,0.00017731,2]
[404023186,1769739045378,-150.8141651,0.00017754,2]
[404023187,1769739045388,-500.0,0.00017754,2]
[404023188,1769739045400,-150.0,0.00017754,2]
[404023189,1769739045410,-152.43916872,0.00017754,2]
[404023190,1769739045420,-500.0,0.00017754,2]
[404023191,1769739045429,-500.0,0.00017754,2]
[404023192,1769739045439,-500.0,0.00017754,2]
[404023193,1769739045450,-150.0,0.00017754,2]
[404023194,1769739045460,-253.60967763,0.00017754,2]
[404023195,1769739045470,-500.0,0.00017754,2]
[404023196,1769739045480,-500.0,0.00017754,2]
[404023197,1769739045489,-500.0,0.00017754,2]
[404023198,1769739045499,-500.0,0.00017754,2]
[404023199,1769739045509,-150.0,0.00017754,2]
[404023200,1769739045518,-1000.0,0.00017757,2]
[404023201,1769739045528,-300.0,0.000178,6]
[404023202,1769739045537,-353.73724505,0.00017809,2]
[404023203,1769739045547,-150.0,0.00017809,2]
[404023204,1769739045557,-500.0,0.00017809,2]
[404023205,1769739045567,-500.0,0.00017809,2]
[404023206,1769739045576,-500.0,0.00017809,2]
[404023207,1769739045586,-150.0,0.00017809,2]
[404023208,1769739045596,-500.0,0.00017809,2]
[404023209,1769739045606,-500.0,0.00017809,2]
[404023210,1769739045618,-500.0,0.00017809,2]
[404023211,1769739045628,-500.0,0.00017809,2]
[404023212,1769739045637,-150.0,0.00017809,2]
[404023213,1769739045647,-1381.92277,0.0001782,2]
[404023214,1769739045656,-1381.92278,0.0001782,2]
[404023215,1769739045666,-168.0,0.00017833,2]
[404023217,1769739045680,-346.92554585,0.00017849,2]
[404023218,1769739045690,-599.60298507,0.0001785,2]
[404023219,1769739045700,-168.0,0.00017855,2]
[404023220,1769739045710,-200.0,0.00017855,2]
[404023221,1769739045719,-200.0,0.00017856,2]
[404023222,1769739045729,-150.0,0.00017863,2]
[404023223,1769739045739,-500.0,0.00017863,2]
[404023224,1769739045749,-500.0,0.00017863,2]
[404023225,1769739045759,-500.0,0.00017863,2]
[404023226,1769739045769,-150.0,0.00017863,2]
[404023227,1769739045779,-500.0,0.00017863,2]
[404023228,1769739045789,-500.0,0.00017863,2]
[404023229,1769739045799,-500.0,0.00017863,2]
[404023230,1769739045808,-150.0,0.00017863,2]
[404023231,1769739045818,-150.0,0.00017863,2]
[404023232,1769739045828,-837.51,0.00017863,2]
[404023233,1769739045838,-1287.72,0.00017863,2]
[404023234,1769739045849,-4790.37571573,0.00017869,2]
[404023235,1769739045859,-11099.43582808,0.00017898,2]
[404023236,1769739045869,-989.39269867,0.00017898,2]
[404023237,1769739045879,-11099.43582799,0.00017898,2]
[404023238,1769739045889,-11099.43582799,0.00017898,2]
[404023239,1769739045899,-11099.43582799,0.00017899,2]
[404023240,1769739045909,-11099.43582799,0.00017899,2]
[404023241,1769739045919,-506.24215187,0.00017899,2]
[404023242,1769739045929,-989.39269866,0.00017899,2]
[404023243,1769739045939,-11099.43582799,0.00017899,2]
[404023244,1769739045949,-11099.43582799,0.00017899,2]
[404023245,1769739045959,-11099.43582799,0.000179,2]
[404023246,1769739045968,-11099.43582799,0.000179,2]
[404023247,1769739045978,-533.6,0.000179,2]
[404023248,1769739045989,-1089.81245063,0.000179,3]
[404023249,1769739045999,-10000.0,0.000179,2]
[404023250,1769739046008,-343.73508676,0.000179,2]
[404023251,1769739046018,-1417.80946078,0.000179,3]
[404023252,1769739046028,-398.66438703,0.000179,2]
[404023253,1769739046041,-4790.37571573,0.000179,2]
[404023254,1769739046051,-300.0,0.000179,6]
[404023255,1769739046061,-172.49965213,0.000179,3]
[404023256,1769739046071,-11099.43582799,0.000179,2]
[404023257,1769739046081,-223.33261478,0.000179,2]
[404023258,1769739046090,-7651.69294882,0.000179,2]
[404023259,1769739046101,-710.72567791,0.000179,2]
[404023260,1769739046113,-838.41497197,0.000179,2]
[404023261,1769739046123,-168.0,0.0001791,2]
[404023262,1769739046133,-150.0,0.00017918,2]
[404023263,1769739046142,-500.0,0.00017918,2]
[404023264,1769739046152,-500.0,0.00017918,2]
[404023265,1769739046166,-454.25101827,0.00017918,2]
[404023266,1769739046176,-150.0,0.00017918,2]
[404023267,1769739046185,-500.0,0.00017918,2]
[404023268,1769739046195,-500.0,0.00017918,2]
[404023269,1769739046206,-215.78291863,0.00017918,2]
[404023270,1769739046215,-238.0007656,0.00017918,2]
[404023271,1769739046225,-500.0,0.00017973,2]
[404023272,1769739046237,-500.0,0.00017973,2]
[404023273,1769739046250,-500.0,0.00017973,2]
[404023274,1769739046260,-500.0,0.00017973,2]
[404023275,1769739046269,-250.0,0.00017973,2]
[404023276,1769739046280,-500.0,0.00017973,2]
[404023277,1769739046289,-500.0,0.00017973,2]
[404023278,1769739046299,-229.11725287,0.00017973,2]
[404023279,1769739046308,-268.77195069,0.00017973,2]
[404023280,1769739046318,-349.32315519,0.00017973,2]
[404023281,1769739046328,-150.0,0.00017973,2]
[404023282,1769739046337,-150.0,0.00017973,2]
[404023283,1769739046347,-235.08018115,0.0001799,2]
[404023284,1769739046356,-235.08018115,0.0001799,2]
[404023285,1769739046370,-235.08018115,0.0001799,2]
[404023286,1769739046379,-500.0,0.00017991,2]
[404023287,1769739046389,-309.68905517,0.00017991,2]
[404023290,1769739046399,-500.0,0.00017991,2]
[404023292,1769739046408,-244.07690118,0.00017991,2]
[404023294,1769739046417,-500.0,0.00017991,2]
[404023296,1769739046427,-500.0,0.00017991,2]
[404023298,1769739046436,-189.29701745,0.00017991,2]
[404023300,1769739046446,-278.136626,0.00017991,2]
[404023302,1769739046459,-19609.1382859,0.00017992,2]
[404023304,1769739046468,-6201.2113736,0.00017992,2]
[404023306,1769739046477,-413222.2505065,0.00017992,2]
[404023308,1769739046487,-151.0,0.00017992,2]
[404023310,1769739046496,-4486.0,0.00017998,2]
[404023312,1769739046506,-312.33,0.00017998,2]
[404023314,1769739046515,-312.33,0.00017998,3]
[404023317,1769739046525,-312.33,0.00017998,4]
[404023319,1769739046535,-312.33,0.00017998,5]
[404023321,1769739046545,-312.33,0.00017998,6]
[404023323,1769739046555,-312.33,0.00017998,7]
[404023325,1769739046566,-312.33,0.00017998,8]
[404023327,1769739046575,-300.0,0.00017999,2]
[404023329,1769739046585,-671.37416857,0.00017999,2]
[404023331,1769739046595,-312.33,0.00017999,9]
[404023333,1769739046604,-312.33,0.00017999,10]
[404023334,1769739046615,-312.33,0.00017999,11]
[404023335,1769739046625,-312.33,0.00017999,12]
[404023337,1769739046634,-312.33,0.00017999,13]
[404023340,1769739046644,-312.33,0.00017999,14]
[404023342,1769739046654,-312.33,0.00017999,15]
[404023344,1769739046664,-312.33,0.00017999,16]
[404023345,1769739046673,-312.33,0.00017999,17]
[404023346,1769739046683,-312.33,0.00017999,18]
[404023347,1769739046692,-312.33,0.00017999,19]
[404023348,1769739046702,-312.33,0.00017999,20]
[404023349,1769739046711,-312.33,0.00017999,21]
[404023350,1769739046720,-312.33,0.00017999,21]
[404023351,1769739046730,-312.33,0.00017999,21]
[404023352,1769739046739,-312.33,0.00017999,21]
[404023353,1769739046749,-312.36450809,0.00017999,21]
[404023354,1769739046759,-1000.0,0.00018,2]
[404023355,1769739046770,-1000.0,0.00018,2]
[404023356,1769739046780,-978.3186082,0.00018,2]
[404023357,1769739046790,-1288763.28565105,0.00018,2]
[404023358,1769739048087,-2479.92067609,0.00013945,2]
[404023359,1769739048100,-4500.40932391,0.00013945,2]
[404023360,1769739048111,-500.0,0.00016341,2]
[404023361,1769739048124,-6575.0,0.00016341,2]
[404023362,1769739048134,-989.39269866,0.000179,2]
[404023363,1769739048144,-241227.48197939,0.00018,2]
[404023364,1769739048156,-2685.27,0.00018,2]
[404023372,1769739133057,-916.0,0.00016341,2]
[404023373,1769739133079,-1204.0,0.00016341,2]
[404023374,1769739133101,-166.41797842,0.00016373,2]
[404023375,1769739133122,-2833.0,0.000164,2]